[Event "Yingmei CHN-chT 2018"]
[Site "Guangdong"]
[Date "2018.11.27"]
[Round "19"]
[White "Zhai, Mo"]
[Black "Khotenashvili, Bela"]
[Result "0-1"]
[ECO "D02"]
[WhiteElo "2363"]
[BlackElo "2352"]
[Annotator "RC"]
[PlyCount "80"]
[EventDate "2018.07.09"]
[EventType "team-tourn"]
[EventCountry "CHN"]
[SourceTitle "playchess.com"]
[Source "ChessBase"]
[SourceQuality "1"]
[TimeControl "5400+30"]

1. d4 {[%emt 0:00:00]} Nf6 {[%emt 0:00:00]} 2. g3 {[%emt 0:00:00]} c5 {[%emt 0:03:41]} 3. c3 {[%emt 0:00:01]} e6 {[%emt 0:04:21]} 4. Bg2 {[%emt 0:00:09]} d5 {[%emt 0:00:15]} 5. Nf3 {[%emt 0:00:34]} Nc6 {[%emt 0:00:11]} 6. O-O {[%emt 0:00:44]} Be7 {[%emt 0:02:37]} 7. Ne5 {[%emt 0:04:03]} O-O {[%emt 0:10:57]} 8. Nxc6 {[%emt 0:00:25]} bxc6 {[%emt 0:00:07]} 9. Nd2 {[%emt 0:00:21]} cxd4 {[%emt 0:02:01]} 10. cxd4 {[%emt 0:00:06]} Qb6 {[%emt 0:03:10]} 11. Nb3 {[%emt 0:01:06]} a5 {[%emt 0:00:43]} 12. Qc2 {[%emt 0:00:41]} Nd7 {[%emt 0:14:33]} 13. Be3 {[%emt 0:01:30]} Ba6 {[%emt 0:03:22]} 14. Rfe1 {[%emt 0:08:13]} Bf6 {[%emt 0:19:09]} 15. Rab1 {[%emt 0:09:59]} a4 {[%emt 0:05:41]} 16. Nc5 {[%emt 0:00:30]} Nxc5 {[%emt 0:00:06]} 17. dxc5 {[%emt 0:00:06]} Qb4 {[%emt 0:04:57]} 18. a3 {[%emt 0:12:40]} Qc4 {[%emt 0:01:06]} 19. Qd2 {[%emt 0:00:18]} Rfb8 {[%emt 0:01:00]} 20. Bf4 {[%emt 0:06:01]} Rb3 {[%emt 0:04:47]} 21. Bd6 {[%emt 0:07:04]} Qd4 {[%emt 0:03:38]} 22. Red1 {[%emt 0:10:14]} Qxd2 {[%emt 0:01:04]} 23. Rxd2 {[%emt 0:00:02]} Ra7 {[%emt 0:01:42]} 24. e4 {[%emt 0:13:16]} Bc3 {[%emt 0:02:53]} 25. Rdd1 {[%emt 0:00:07]} Bxb2 {[%emt 0:00:25]} 26. exd5 {[%emt 0:02:12]} exd5 {[%emt 0:00:02]} 27. Re1 {[%emt 0:00:18]} h5 {[%emt 0:04:46]} 28. Re8+ {[%emt 0:01:54]} Kh7 {[%emt 0:00:01]} 29. Bh3 {[%emt 0:01:30]} Bd3 {[%emt 0:02:38]} 30. Rd1 {[%emt 0:00:26]} Bc2 {[%emt 0:01:46]} 31. Rd2 {[%emt 0:00:20]} Bg6 {[%emt 0:01:44]} 32. Rc8 {[%emt 0:05:05]} Bc3 {[%emt 0:00:01]} 33. Re2 {[%emt 0:01:09]} Bd3 {[%emt 0:00:34]} 34. Re3 {[%emt 0:00:50]} Rb1+ {[%emt 0:00:31]} 35. Kg2 {[%emt 0:00:06]} Bf1+ {[%emt 0:00:09]} 36. Kf3 {[%emt 0:00:05]} Bxh3 {[%emt 0:00:05]} 37. Rxc6 {[%emt 0:00:55]} Rb3 {[%emt 0:01:22]} 38. Rb6 {[%emt 0:00:43]} d4 {[%emt 0:00:24]} 39. Re5 {[%emt 0:00:45]} g6 {[%emt 0:01:29]} 40. Re8 {[%emt 0:03:28]} d3 {[%emt 0:00:16]} 0-1

[Event "Yingmei CHN-chT 2018"]
[Site "Guangdong"]
[Date "2018.11.28"]
[Round "20"]
[White "Girya, Olga"]
[Black "Wang, Jue"]
[Result "1/2-1/2"]
[ECO "D41"]
[WhiteElo "2318"]
[BlackElo "2351"]
[Annotator "RC"]
[PlyCount "85"]
[EventDate "2018.07.09"]
[EventType "team-tourn"]
[EventCountry "CHN"]
[SourceTitle "playchess.com"]
[Source "ChessBase"]
[SourceQuality "1"]
[TimeControl "5400+30"]

1. d4 {[%emt 0:00:00]} Nf6 {[%emt 0:00:00]} 2. c4 {[%emt 0:00:00]} e6 {[%emt 0:00:03]} 3. Nf3 {[%emt 0:00:00]} d5 {[%emt 0:00:06]} 4. Nc3 {[%emt 0:00:00]} c5 {[%emt 0:00:05]} 5. cxd5 {[%emt 0:00:02]} Nxd5 {[%emt 0:00:07]} 6. e4 {[%emt 0:00:04]} Nxc3 {[%emt 0:00:06]} 7. bxc3 {[%emt 0:00:05]} cxd4 {[%emt 0:00:04]} 8. cxd4 {[%emt 0:00:10]} Bb4+ {[%emt 0:00:03]} 9. Bd2 {[%emt 0:00:11]} Bxd2+ {[%emt 0:00:06]} 10. Qxd2 {[%emt 0:00:03]} O-O {[%emt 0:00:09]} 11. Rc1 {[%emt 0:01:00]} b6 {[%emt 0:00:06]} 12. Bd3 {[%emt 0:00:39]} Ba6 {[%emt 0:00:06]} 13. Bxa6 {[%emt 0:00:29]} Nxa6 {[%emt 0:00:12]} 14. O-O {[%emt 0:00:09]} Qe7 {[%emt 0:00:03]} 15. Qe2 {[%emt 0:01:22]} Qb7 {[%emt 0:00:18]} 16. Ne5 {[%emt 0:00:23]} Rac8 {[%emt 0:00:15]} 17. Qb5 {[%emt 0:01:00]} Nb8 {[%emt 0:01:18]} 18. d5 {[%emt 0:01:28]} exd5 {[%emt 0:00:07]} 19. exd5 {[%emt 0:00:08]} Qe7 {[%emt 0:07:37]} 20. Nc6 {[%emt 0:01:52]} Nxc6 {[%emt 0:07:06]} 21. Rxc6 {[%emt 0:00:26]} Rxc6 {[%emt 0:15:45]} 22. dxc6 {[%emt 0:02:12]} Rc8 {[%emt 0:06:24]} 23. Rc1 {[%emt 0:00:28]} Rc7 {[%emt 0:03:27]} 24. g3 {[%emt 0:13:19]} h6 {[%emt 0:11:22]} 25. h4 {[%emt 0:00:41]} Qd6 {[%emt 0:13:32]} 26. h5 {[%emt 0:12:19]} Qf6 {[%emt 0:04:09]} 27. Qe2 {[%emt 0:06:35]} Qe6 {[%emt 0:02:14]} 28. Qc2 {[%emt 0:00:41]} Qd5 {[%emt 0:06:24]} 29. Qe2 {[%emt 0:01:59]} Qe6 {[%emt 0:03:41]} 30. Qf3 {[%emt 0:01:23]} b5 {[%emt 0:03:01]} 31. a3 {[%emt 0:28:46]} a5 {[%emt 0:12:22]} 32. Rc5 {[%emt 0:00:53]} b4 {[%emt 0:02:49]} 33. Rxa5 {[%emt 0:06:38]} bxa3 {[%emt 0:00:05]} 34. Ra8+ {[%emt 0:03:53]} Rc8 {[%emt 0:00:04]} 35. c7 {[%emt 0:06:16]} a2 {[%emt 0:00:04]} 36. Qb7 {[%emt 0:01:44]} Rxa8 {[%emt 0:00:04]} 37. Qxa8+ {[%emt 0:00:05]} Kh7 {[%emt 0:00:05]} 38. Kg2 {[%emt 0:02:05]} a1=Q {[%emt 0:01:09]} 39. Qxa1 {[%emt 0:01:25]} Qc6+ {[%emt 0:00:03]} 40. Kh2 {[%emt 0:00:10]} Qxc7 {[%emt 0:00:03]} 41. Qb1+ {[%emt 0:00:16]} Kg8 {[%emt 0:00:03]} 42. Qe4 {[%emt 0:00:28]} Qd7 {[%emt 0:01:21]} 43. Qa8+ {[%emt 0:00:18]} 1/2-1/2

[Event "Yingmei CHN-chT 2018"]
[Site "Guangdong"]
[Date "2018.11.28"]
[Round "20"]
[White "Ding, Yixin"]
[Black "Zhai, Mo"]
[Result "1-0"]
[ECO "D00"]
[WhiteElo "2089"]
[BlackElo "2304"]
[Annotator "RC"]
[PlyCount "109"]
[EventDate "2018.07.09"]
[EventType "team-tourn"]
[EventCountry "CHN"]
[SourceTitle "playchess.com"]
[Source "ChessBase"]
[SourceQuality "1"]
[TimeControl "5400+30"]

1. Nf3 {[%emt 0:00:00]} Nf6 {[%emt 0:00:32]} 2. d4 {[%emt 0:00:00]} g6 {[%emt 0:00:25]} 3. Nc3 {[%emt 0:02:26]} d5 {[%emt 0:00:53]} 4. Bf4 {[%emt 0:00:00]} Bg7 {[%emt 0:02:34]} 5. e3 {[%emt 0:00:00]} a6 {[%emt 0:05:28]} 6. Ne5 {[%emt 0:05:48]} Bf5 {[%emt 0:09:32]} 7. g4 {[%emt 0:14:07]} Be6 {[%emt 0:00:21]} 8. Bg2 {[%emt 0:00:06]} Nc6 {[%emt 0:17:32]} 9. Bf3 {[%emt 0:06:57]} Nxe5 {[%emt 0:12:31]} 10. Bxe5 {[%emt 0:01:55]} h6 {[%emt 0:01:38]} 11. Qe2 {[%emt 0:03:14]} Kf8 {[%emt 0:10:52]} 12. h4 {[%emt 0:09:48]} Qd7 {[%emt 0:04:15]} 13. g5 {[%emt 0:01:18]} hxg5 {[%emt 0:02:41]} 14. hxg5 {[%emt 0:00:02]} Rxh1+ {[%emt 0:00:22]} 15. Bxh1 {[%emt 0:00:01]} Nh5 {[%emt 0:00:59]} 16. Bf3 {[%emt 0:05:08]} Bxe5 {[%emt 0:00:23]} 17. dxe5 {[%emt 0:01:24]} Kg7 {[%emt 0:01:12]} 18. O-O-O {[%emt 0:00:15]} c6 {[%emt 0:00:14]} 19. Bxh5 {[%emt 0:13:15]} gxh5 {[%emt 0:00:01]} 20. Qxh5 {[%emt 0:00:07]} Rh8 {[%emt 0:00:36]} 21. Qe2 {[%emt 0:00:02]} Rh2 {[%emt 0:03:03]} 22. Qf3 {[%emt 0:10:43]} Qc8 {[%emt 0:04:32]} 23. Ne2 {[%emt 0:09:14]} Bg4 {[%emt 0:03:07]} 24. Qf4 {[%emt 0:00:01]} Rh3 {[%emt 0:00:34]} 25. Re1 {[%emt 0:04:28]} Rf3 {[%emt 0:09:55]} 26. Qd4 {[%emt 0:00:08]} c5 {[%emt 0:00:32]} 27. Qxd5 {[%emt 0:00:34]} Rxf2 {[%emt 0:00:11]} 28. Nf4 {[%emt 0:05:48]} Bf5 {[%emt 0:04:20]} 29. Nd3 {[%emt 0:00:29]} Bxd3 {[%emt 0:00:35]} 30. Qxd3 {[%emt 0:00:02]} Qf5 {[%emt 0:00:23]} 31. Qc3 {[%emt 0:04:31]} b6 {[%emt 0:02:11]} 32. e6+ {[%emt 0:00:13]} Kg6 {[%emt 0:00:45]} 33. exf7 {[%emt 0:00:06]} Kxf7 {[%emt 0:00:09]} 34. Qc4+ {[%emt 0:02:34]} Kg7 {[%emt 0:00:16]} 35. Rg1 {[%emt 0:00:44]} Qf3 {[%emt 0:03:09]} 36. Qc3+ {[%emt 0:00:30]} Kg8 {[%emt 0:00:30]} 37. Qc4+ {[%emt 0:00:30]} Kg7 {[%emt 0:00:30]} 38. g6 {[%emt 0:00:30]} Re2 {[%emt 0:00:30]} 39. Qc3+ {[%emt 0:00:30]} Kg8 {[%emt 0:00:30]} 40. Qd3 {[%emt 0:01:20]} Kg7 {[%emt 0:00:07]} 41. Kb1 {[%emt 0:00:30]} Rg2 {[%emt 0:00:30]} 42. Rf1 {[%emt 0:00:30]} Rf2 {[%emt 0:00:30]} 43. Rc1 {[%emt 0:00:30]} Qg2 {[%emt 0:00:30]} 44. a4 {[%emt 0:00:30]} Qxg6 {[%emt 0:00:30]} 45. e4 {[%emt 0:00:30]} a5 {[%emt 0:00:30]} 46. Qc3+ {[%emt 0:00:30]} Kf7 {[%emt 0:00:32]} 47. Re1 {[%emt 0:00:57]} Rg2 {[%emt 0:01:00]} 48. e5 {[%emt 0:00:06]} Kg8 {[%emt 0:00:07]} 49. e6 {[%emt 0:00:41]} Rg3 {[%emt 0:00:20]} 50. Re3 {[%emt 0:00:02]} Rg2 {[%emt 0:00:10]} 51. Ka2 {[%emt 0:01:10]} Rxc2 {[%emt 0:00:43]} 52. Qc4 {[%emt 0:00:01]} Kh7 {[%emt 0:01:10]} 53. Qd5 {[%emt 0:00:31]} Kg7 {[%emt 0:00:02]} 54. Rh3 {[%emt 0:00:17]} Qf6 {[%emt 0:00:21]} 55. Qe5 {[%emt 0:00:04] Kh6 [%clk 00:01:16] Qxf6+ [%clk 00:00:43] exf6 [%clk 00:01:44] Re3 [%clk 00:01:09]} 1-0

[Event "Yingmei CHN-chT 2018"]
[Site "Guangdong"]
[Date "2018.11.30"]
[Round "22"]
[White "Yu, Yangyi"]
[Black "Wen, Yang"]
[Result "1-0"]
[ECO "E02"]
[WhiteElo "2765"]
[BlackElo "2609"]
[Annotator "RC"]
[PlyCount "65"]
[EventDate "2018.07.09"]
[EventType "team-tourn"]
[EventCountry "CHN"]
[SourceTitle "playchess.com"]
[Source "ChessBase"]
[SourceQuality "1"]
[TimeControl "5400+30"]

1. d4 {[%emt 0:00:00]} Nf6 {[%emt 0:00:00]} 2. c4 {[%emt 0:00:00]} e6 {[%emt 0:00:00]} 3. g3 {[%emt 0:03:33]} d5 {[%emt 0:00:00]} 4. Bg2 {[%emt 0:00:06]} dxc4 {[%emt 0:00:00]} 5. Nf3 {[%emt 0:01:12]} Bd7 {[%emt 0:00:03]} 6. O-O {[%emt 0:03:08]} Bc6 {[%emt 0:04:29]} 7. Qc2 {[%emt 0:00:07]} Nbd7 {[%emt 0:06:15]} 8. Qxc4 {[%emt 0:02:29]} Bd5 {[%emt 0:00:06]} 9. Qd3 {[%emt 0:03:52]} Be4 {[%emt 0:00:33]} 10. Qd2 {[%emt 0:00:33]} c5 {[%emt 0:01:58]} 11. Nc3 {[%emt 0:00:07]} Bc6 {[%emt 0:00:18]} 12. Rd1 {[%emt 0:00:17]} Rc8 {[%emt 0:04:48]} 13. a3 {[%emt 0:03:17]} a6 {[%emt 0:10:00]} 14. e4 {[%emt 0:10:51]} Nxe4 {[%emt 0:06:52]} 15. Nxe4 {[%emt 0:02:12]} Bxe4 {[%emt 0:00:06]} 16. Qe2 {[%emt 0:00:59]} Bd5 {[%emt 0:01:56]} 17. dxc5 {[%emt 0:02:03]} Bb3 {[%emt 0:00:35]} 18. Bg5 {[%emt 0:02:54]} Qc7 {[%emt 0:23:49]} 19. c6 {[%emt 0:19:53]} bxc6 {[%emt 0:00:52]} 20. Nd4 {[%emt 0:05:00]} Bxd1 {[%emt 0:00:50]} 21. Rxd1 {[%emt 0:00:06]} Ne5 {[%emt 0:09:13]} 22. Bf4 {[%emt 0:12:43]} Bd6 {[%emt 0:01:32]} 23. Nxc6 {[%emt 0:01:29]} f6 {[%emt 0:00:50]} 24. Qxa6 {[%emt 0:01:55]} O-O {[%emt 0:09:08]} 25. b4 {[%emt 0:00:23]} Nxc6 {[%emt 0:03:30]} 26. Bxd6 {[%emt 0:00:35]} Qd7 {[%emt 0:00:02]} 27. b5 {[%emt 0:01:46]} Nb8 {[%emt 0:09:30]} 28. Qa5 {[%emt 0:00:36]} Rfd8 {[%emt 0:00:11]} 29. Bf3 {[%emt 0:00:15]} Qe8 {[%emt 0:00:24]} 30. b6 {[%emt 0:05:49]} Rd7 {[%emt 0:03:27]} 31. b7 {[%emt 0:00:11]} Rcd8 {[%emt 0:00:19]} 32. Qb6 {[%emt 0:06:04]} Qg6 {[%emt 0:00:11]} 33. Kg2 {[%emt 0:02:57]} 1-0

[Event "Yingmei CHN-chT 2018"]
[Site "Guangdong"]
[Date "2018.11.30"]
[Round "22"]
[White "Li, Chao b"]
[Black "Bu, Xiangzhi"]
[Result "1/2-1/2"]
[ECO "A29"]
[WhiteElo "2715"]
[BlackElo "2712"]
[Annotator "RC"]
[PlyCount "65"]
[EventDate "2018.07.09"]
[EventType "team-tourn"]
[EventCountry "CHN"]
[SourceTitle "playchess.com"]
[Source "ChessBase"]
[SourceQuality "1"]
[TimeControl "5400+30"]

1. c4 {[%emt 0:00:00]} Nf6 {[%emt 0:00:11]} 2. Nc3 {[%emt 0:00:00]} e5 {[%emt 0:00:24]} 3. g3 {[%emt 0:00:23]} Bb4 {[%emt 0:00:31]} 4. Bg2 {[%emt 0:00:21]} O-O {[%emt 0:00:14]} 5. Nf3 {[%emt 0:00:28]} Re8 {[%emt 0:01:00]} 6. O-O {[%emt 0:00:56]} e4 {[%emt 0:04:00]} 7. Nd4 {[%emt 0:01:16]} Nc6 {[%emt 0:01:52]} 8. Nc2 {[%emt 0:00:48]} Bxc3 {[%emt 0:02:54]} 9. bxc3 {[%emt 0:00:22]} d5 {[%emt 0:02:36]} 10. cxd5 {[%emt 0:00:37]} Qxd5 {[%emt 0:01:08]} 11. Ne3 {[%emt 0:02:46]} Qh5 {[%emt 0:02:49]} 12. f3 {[%emt 0:01:31]} exf3 {[%emt 0:01:29]} 13. exf3 {[%emt 0:10:31]} Ne7 {[%emt 0:06:22]} 14. f4 {[%emt 0:04:45]} Qxd1 {[%emt 0:04:27]} 15. Rxd1 {[%emt 0:00:06]} Nf5 {[%emt 0:00:11]} 16. Rb1 {[%emt 0:02:37]} Nxe3 {[%emt 0:06:28]} 17. dxe3 {[%emt 0:00:31]} h5 {[%emt 0:00:07]} 18. Rd4 {[%emt 0:05:57]} c5 {[%emt 0:01:35]} 19. Rd6 {[%emt 0:08:38]} Ne4 {[%emt 0:00:55]} 20. Bxe4 {[%emt 0:00:26]} Rxe4 {[%emt 0:00:02]} 21. Rd8+ {[%emt 0:02:36]} Kh7 {[%emt 0:00:04]} 22. Rd5 {[%emt 0:00:44]} g6 {[%emt 0:01:03]} 23. Rxc5 {[%emt 0:00:32]} b6 {[%emt 0:00:10]} 24. Rc7 {[%emt 0:00:56]} Be6 {[%emt 0:00:03]} 25. Rb4 {[%emt 0:00:11]} Rxb4 {[%emt 0:00:06]} 26. cxb4 {[%emt 0:00:02]} Bxa2 {[%emt 0:00:49]} 27. e4 {[%emt 0:00:31]} a5 {[%emt 0:00:19]} 28. bxa5 {[%emt 0:00:08]} bxa5 {[%emt 0:00:07]} 29. Be3 {[%emt 0:00:23]} a4 {[%emt 0:00:06]} 30. Ra7 {[%emt 0:00:07]} Rxa7 {[%emt 0:00:02]} 31. Bxa7 {[%emt 0:00:04]} a3 {[%emt 0:00:04]} 32. Bc5 {[%emt 0:00:04]} Bb1 {[%emt 0:00:03]} 33. Bxa3 {[%emt 0:00:02]} 1/2-1/2

[Event "Yingmei CHN-chT 2018"]
[Site "Guangdong"]
[Date "2018.11.30"]
[Round "22"]
[White "Huang, Qian"]
[Black "Wang, Jue"]
[Result "1/2-1/2"]
[ECO "A14"]
[WhiteElo "2183"]
[BlackElo "2351"]
[Annotator "NA RC"]
[PlyCount "64"]
[EventDate "2018.07.09"]
[EventType "team-tourn"]
[EventCountry "CHN"]
[SourceTitle "playchess.com"]
[Source "ChessBase"]
[SourceQuality "1"]
[TimeControl "5400+30"]

{[%evp 8,60,3,32767,17,32767,26,-14,14,-14,32767,-23,2,4,32767,32767,32767,32767,32767,32767,32767,32767,32767,11,26,0,32767,0,-2,0,0,0,0,0,-1,0,32767,0,32767,32767,32767,32767,0,32767,32767,32767,32767,32767,32767,32767,0,0,32767,0,0]} 1. Nf3 {[%emt 0:00:00]} Nf6 {[%emt 0:00:00]} 2. g3 {[%emt 0:00:25]} d5 {[%emt 0:00:00]} 3. Bg2 {[%emt 0:00:06]} e6 {[%emt 0:00:32]} 4. O-O {[%emt 0:00:34]} Be7 {[%emt 0:00:04]} 5. c4 {[%emt 0:00:16]} O-O {[%emt 0:00:15]} 6. b3 {[%emt 0:03:16]} c5 {[%emt 0:03:58]} 7. d4 {[%emt 0:01:41]} Nc6 {[%emt 0:18:00]} 8. Bb2 {[%emt 0:05:21]} dxc4 {[%emt 0:05:11] A14: English Opening: 1...e6 with b3 by White} 9. bxc4 {[%emt 0:01:30]} cxd4 {[%emt 0:02:29] LiveBook: 4 Games} 10. Nxd4 {[%emt 0:00:05]} Na5 {[%emt 0:00:08]} (10... Bd7 11. Nxc6 Bxc6 12. Bxc6 bxc6 13. Qc2 Nd7 14. Rd1 Qc7 15. Nd2 Bf6 16. Ne4 Bxb2 17. Qxb2 {½-½ (36) Grachev,B (2657)-Golubov,S (2488) Khanty-Mansiysk 2017}) 11. Nd2 {[%emt 0:06:13]} Bd7 {[%emt 0:01:49]} 12. Bc3 {[%emt 0:07:09]} Nc6 $146 {[%emt 0:09:24]} ({Predecessor:} 12... Rc8 13. Rc1 Nc6 14. N2f3 Qc7 15. Nb5 Qb8 16. Qb3 {½-½ (41) Steindorsson,S (2215)-Thorhallsson,T (2435) Reykjavik 2014}) 13. Nxc6 {[%emt 0:11:42]} Bxc6 {[%emt 0:00:05]} 14. Bxc6 {[%emt 0:00:07]} bxc6 {[%emt 0:00:08]} 15. Nb3 {[%emt 0:00:49]} Qc8 {[%emt 0:03:34]} 16. Qc2 {[%emt 0:00:41]} c5 {[%emt 0:08:40]} 17. Bxf6 {[%emt 0:06:29]} Bxf6 {[%emt 0:00:10]} 18. Rab1 {[%emt 0:00:40]} Qc7 {[%emt 0:01:36]} 19. Nc1 {[%emt 0:03:23]} Rab8 {[%emt 0:06:31]} 20. Nd3 {[%emt 0:01:21]} g6 {[%emt 0:03:16]} 21. Rxb8 {[%emt 0:05:08]} Rxb8 {[%emt 0:03:14]} 22. Rb1 {[%emt 0:00:42]} Rxb1+ {[%emt 0:00:32]} 23. Qxb1 {[%emt 0:00:05]} Qb6 {[%emt 0:00:02]} 24. Qc2 {[%emt 0:01:23]} Qa5 {[%emt 0:04:45]} 25. Kg2 {[%emt 0:01:06]} Qb6 {[%emt 0:00:20]} 26. e3 {[%emt 0:00:52]} Qc6+ {[%emt 0:00:37]} 27. f3 {[%emt 0:00:10]} Kg7 {[%emt 0:03:09]} 28. Nf2 {[%emt 0:01:45]} Be7 {[%emt 0:02:18]} 29. Qb2+ {[%emt 0:01:06]} Bf6 {[%emt 0:00:41]} 30. Qc2 {[%emt 0:01:39]} Be7 $11 {[%emt 0:04:37]} 31. Ne4 {[%emt 0:05:53]} f5 {[%emt 0:00:48]} 32. Nf2 {[%emt 0:04:11]} Bf6 {[%emt 0:03:47]} 1/2-1/2